[Event "69th RUS-ch Women Higher League 2019"]
[Site "Yaroslavl"]
[Date "2019.06.27"]
[Round "1.21"]
[White "Loskutova, Viktoriya"]
[Black "Dimitrova, Aleksandra"]
[Result "1-0"]
[ECO "B13"]
[WhiteElo "2019"]
[BlackElo "2273"]
[Annotator "NA"]
[PlyCount "97"]
[EventDate "2019.06.27"]
[EventType "swiss"]
[EventCountry "RUS"]
[SourceTitle "playchess.com"]
[Source "ChessBase"]
[SourceQuality "1"]
[TimeControl "40/5400+30:1800+30"]

1. e4 {[%emt 0:00:00]} c6 {[%emt 0:00:00]} 2. d4 {[%emt 0:00:00]} d5 {[%emt 0:00:00]} 3. exd5 {[%emt 0:00:00]} cxd5 {[%emt 0:00:00]} 4. Bd3 {[%emt 0:00:00]} Nc6 {[%emt 0:03:17]} 5. c3 {[%emt 0:00:00]} Qc7 {[%emt 0:01:47]} 6. h3 {[%emt 0:00:00]} Nf6 {[%emt 0:01:59]} 7. Na3 {[%emt 0:00:18]} a6 {[%emt 0:01:48]} 8. Nc2 {[%emt 0:00:07]} g6 {[%emt 0:00:41]} 9. Ne2 {[%emt 0:00:19]} Bg7 {[%emt 0:05:13]} 10. O-O {[%emt 0:00:32]} O-O {[%emt 0:01:34]} 11. Bf4 {[%emt 0:01:28]} Qd8 {[%emt 0:01:04]} 12. a4 {[%emt 0:07:20]} Ne8 {[%emt 0:18:22]} 13. Ne3 {[%emt 0:05:07]} Be6 {[%emt 0:06:29]} 14. Bh2 {[%emt 0:06:10]} f6 {[%emt 0:02:17]} 15. c4 {[%emt 0:04:29]} dxc4 {[%emt 0:08:40]} 16. Bxc4 {[%emt 0:00:19]} Bxc4 {[%emt 0:01:54]} 17. Nxc4 {[%emt 0:00:02]} Nd6 {[%emt 0:07:29]} 18. Bxd6 {[%emt 0:21:22]} exd6 {[%emt 0:00:06]} 19. Qb3 {[%emt 0:00:38]} Rf7 {[%emt 0:01:23]} 20. d5 {[%emt 0:06:37]} Ne5 {[%emt 0:02:57]} 21. Nb6 {[%emt 0:01:07]} Rb8 {[%emt 0:00:15]} 22. Nd4 {[%emt 0:04:36]} f5 {[%emt 0:04:45]} 23. Ne6 {[%emt 0:01:09]} Qh4 {[%emt 0:01:47]} 24. f4 {[%emt 0:07:55]} Nd7 {[%emt 0:00:50]} 25. Nxd7 {[%emt 0:00:06]} Rxd7 {[%emt 0:00:04]} 26. Rac1 {[%emt 0:00:59]} Qf6 {[%emt 0:07:19]} 27. Rc2 {[%emt 0:00:39]} h6 {[%emt 0:05:20]} 28. Rfc1 {[%emt 0:00:25]} Kh8 {[%emt 0:02:15]} 29. a5 {[%emt 0:15:20]} Re8 {[%emt 0:04:28]} 30. Qa4 {[%emt 0:02:41]} Qf7 {[%emt 0:01:41]} 31. b3 {[%emt 0:02:52]} Kh7 {[%emt 0:01:58]} 32. Qb4 {[%emt 0:06:58]} Ree7 {[%emt 0:01:42]} 33. Rc8 {[%emt 0:00:47]} Re8 {[%emt 0:01:12]} 34. R8c7 {[%emt 0:02:00]} Ree7 {[%emt 0:00:50]} 35. Qxb7 {[%emt 0:01:27]} Rxc7 {[%emt 0:03:29]} 36. Rxc7 {[%emt 0:00:01]} Rxc7 {[%emt 0:00:09]} 37. Qxc7 {[%emt 0:00:01]} Qxc7 {[%emt 0:00:51]} 38. Nxc7 {[%emt 0:00:03]} Bc3 {[%emt 0:00:07]} 39. Nxa6 {[%emt 0:00:21]} Bxa5 {[%emt 0:00:04]} 40. b4 {[%emt 0:00:00]} Bb6+ {[%emt 0:00:00]} 41. Kf1 {[%emt 0:00:52]} Kg7 {[%emt 0:00:47]} 42. Ke2 {[%emt 0:08:20]} Kf7 {[%emt 0:00:33]} 43. Kd3 {[%emt 0:00:21]} Ke7 {[%emt 0:00:13]} 44. Nb8 {[%emt 0:00:50]} g5 {[%emt 0:07:09]} 45. Nc6+ {[%emt 0:00:14]} Kd7 {[%emt 0:03:36]} 46. Nd4 {[%emt 0:02:25]} Bxd4 {[%emt 0:02:24]} 47. Kxd4 {[%emt 0:00:02]} Kc7 {[%emt 0:00:08]} 48. fxg5 {[%emt 0:02:12]} hxg5 {[%emt 0:00:04]} 49. g3 {[%emt 0:00:14]} 1-0

[Event "69th RUS-ch Women Higher League 2019"]
[Site "Yaroslavl"]
[Date "2019.06.27"]
[Round "1.22"]
[White "Protopopova, Anastasiya"]
[Black "Tokmakova, Ulyana"]
[Result "1-0"]
[ECO "A40"]
[WhiteElo "2272"]
[BlackElo "1878"]
[Annotator "NA"]
[PlyCount "53"]
[EventDate "2019.06.27"]
[EventType "swiss"]
[EventCountry "RUS"]
[SourceTitle "playchess.com"]
[Source "ChessBase"]
[SourceQuality "1"]
[TimeControl "40/5400+30:1800+30"]

1. d4 {[%emt 0:00:00]} e6 {[%emt 0:00:00]} 2. c4 {[%emt 0:00:04]} d5 {[%emt 0:00:00]} 3. Nf3 {[%emt 0:01:34]} c5 {[%emt 0:00:00]} 4. cxd5 {[%emt 0:01:13]} exd5 {[%emt 0:00:24]} 5. g3 {[%emt 0:03:53]} Nc6 {[%emt 0:00:20]} 6. Bg2 {[%emt 0:00:10]} Nf6 {[%emt 0:00:09]} 7. O-O {[%emt 0:00:30]} Be7 {[%emt 0:00:37]} 8. dxc5 {[%emt 0:00:09]} Bxc5 {[%emt 0:00:13]} 9. a3 {[%emt 0:00:04]} O-O {[%emt 0:03:45]} 10. b4 {[%emt 0:00:16]} Bd6 {[%emt 0:01:38]} 11. Nc3 {[%emt 0:04:14]} Be6 {[%emt 0:03:12]} 12. Ng5 {[%emt 0:10:20]} Be5 {[%emt 0:02:03]} 13. Nxe6 {[%emt 0:02:27]} fxe6 {[%emt 0:00:08]} 14. Bb2 {[%emt 0:00:39]} Rc8 {[%emt 0:03:27]} 15. Rc1 {[%emt 0:08:38]} Nd7 {[%emt 0:09:39]} 16. b5 {[%emt 0:17:42]} Na5 {[%emt 0:03:40]} 17. Nxd5 {[%emt 0:09:06]} Rxc1 {[%emt 0:00:45]} 18. Bxc1 {[%emt 0:00:12]} exd5 {[%emt 0:01:55]} 19. Qxd5+ {[%emt 0:00:12]} Kh8 {[%emt 0:00:51]} 20. Bh3 {[%emt 0:09:20]} Qf6 {[%emt 0:13:01]} 21. Bxd7 {[%emt 0:03:36]} Bd4 {[%emt 0:02:19]} 22. Bg5 {[%emt 0:04:03]} Qb6 {[%emt 0:02:49]} 23. Be7 {[%emt 0:05:38]} Rxf2 {[%emt 0:01:21]} 24. Rxf2 {[%emt 0:00:15]} Bxf2+ {[%emt 0:00:20]} 25. Kg2 {[%emt 0:00:16]} Bd4 {[%emt 0:00:29]} 26. Qf7 {[%emt 0:01:06]} h6 {[%emt 0:00:15]} 27. Be6 {[%emt 0:01:52]} 1-0

[Event "69th RUS-ch Women Higher League 2019"]
[Site "Yaroslavl"]
[Date "2019.06.27"]
[Round "1.23"]
[White "Yakushina, Ekaterina"]
[Black "Borisova, Ekaterina"]
[Result "0-1"]
[ECO "D30"]
[WhiteElo "1783"]
[BlackElo "2267"]
[Annotator "NA"]
[PlyCount "60"]
[EventDate "2019.06.27"]
[EventType "swiss"]
[EventCountry "RUS"]
[SourceTitle "playchess.com"]
[Source "ChessBase"]
[SourceQuality "1"]
[TimeControl "40/5400+30:1800+30"]

1. d4 {[%emt 0:00:02]} d5 {[%emt 0:00:00]} 2. c4 {[%emt 0:00:39]} e6 {[%emt 0:00:00]} 3. Nf3 {[%emt 0:01:20]} Nf6 {[%emt 0:00:00]} 4. g3 {[%emt 0:00:31]} g6 {[%emt 0:00:00]} 5. Bg2 {[%emt 0:01:51]} Bg7 {[%emt 0:00:00]} 6. O-O {[%emt 0:00:14]} O-O {[%emt 0:00:00]} 7. Nc3 {[%emt 0:09:20]} c6 {[%emt 0:00:03]} 8. Qc2 {[%emt 0:09:04]} b6 {[%emt 0:04:13]} 9. Rd1 {[%emt 0:01:57]} Ba6 {[%emt 0:16:56]} 10. cxd5 {[%emt 0:21:52]} exd5 {[%emt 0:00:09]} 11. Bf4 {[%emt 0:00:35]} Nbd7 {[%emt 0:02:51]} 12. Rac1 {[%emt 0:01:24]} Re8 {[%emt 0:02:18]} 13. e3 {[%emt 0:02:50]} Qe7 {[%emt 0:08:38]} 14. Ne5 {[%emt 0:05:10]} Bb7 {[%emt 0:03:03]} 15. Qa4 {[%emt 0:11:17]} Nxe5 {[%emt 0:07:56]} 16. Bxe5 {[%emt 0:00:38]} Bh6 {[%emt 0:03:29]} 17. Nxd5 {[%emt 0:16:49]} Nxd5 {[%emt 0:07:20]} 18. Bxd5 {[%emt 0:00:26]} b5 {[%emt 0:07:01]} 19. Qb3 {[%emt 0:02:02]} cxd5 {[%emt 0:05:02]} 20. Rc7 {[%emt 0:00:09]} Qe6 {[%emt 0:00:50]} 21. Rxb7 {[%emt 0:00:13]} a6 {[%emt 0:00:31]} 22. Rc1 {[%emt 0:03:42]} f6 {[%emt 0:03:02]} 23. Bc7 {[%emt 0:00:17]} Rac8 {[%emt 0:00:25]} 24. Rc5 {[%emt 0:03:28]} Bf8 {[%emt 0:01:45]} 25. Rxd5 {[%emt 0:00:32]} Kh8 {[%emt 0:03:15]} 26. Ba5 {[%emt 0:04:24]} Rc1+ {[%emt 0:05:28]} 27. Kg2 {[%emt 0:00:04]} Qe4+ {[%emt 0:01:01]} 28. Kh3 {[%emt 0:00:05]} Rg1 {[%emt 0:01:46]} 29. f3 {[%emt 0:02:12]} Qxf3 {[%emt 0:01:00]} 30. e4 {[%emt 0:01:01]} Qg2+ {[%emt 0:00:15]} 0-1

[Event "69th RUS-ch Women Higher League 2019"]
[Site "Yaroslavl"]
[Date "2019.06.27"]
[Round "1.24"]
[White "Potapova, Margarita"]
[Black "Dzutseva, Lana"]
[Result "1-0"]
[ECO "D43"]
[WhiteElo "2256"]
[BlackElo "1325"]
[Annotator "NA"]
[PlyCount "75"]
[EventDate "2019.06.27"]
[EventType "swiss"]
[EventCountry "RUS"]
[SourceTitle "playchess.com"]
[Source "ChessBase"]
[SourceQuality "1"]
[TimeControl "40/5400+30:1800+30"]

1. d4 {[%emt 0:00:00]} d5 {[%emt 0:00:00]} 2. c4 {[%emt 0:00:00]} e6 {[%emt 0:00:00]} 3. Nc3 {[%emt 0:00:02]} Nf6 {[%emt 0:00:00]} 4. Nf3 {[%emt 0:00:42]} c6 {[%emt 0:00:00]} 5. Bg5 {[%emt 0:03:15]} Be7 {[%emt 0:00:10]} 6. e3 {[%emt 0:00:12]} Nbd7 {[%emt 0:00:23]} 7. Bd3 {[%emt 0:01:07]} O-O {[%emt 0:00:09]} 8. O-O {[%emt 0:00:20]} dxc4 {[%emt 0:01:02]} 9. Bxc4 {[%emt 0:00:05]} Nd5 {[%emt 0:00:10]} 10. Bxe7 {[%emt 0:00:51]} Qxe7 {[%emt 0:00:05]} 11. Qe2 {[%emt 0:11:14]} b6 {[%emt 0:06:35]} 12. Rac1 {[%emt 0:09:56]} Bb7 {[%emt 0:01:49]} 13. Nxd5 {[%emt 0:01:03]} exd5 {[%emt 0:01:24]} 14. Ba6 {[%emt 0:01:12]} Bxa6 {[%emt 0:16:57]} 15. Qxa6 {[%emt 0:00:05]} Qd6 {[%emt 0:04:53]} 16. Rfd1 {[%emt 0:01:01]} f5 {[%emt 0:13:03]} 17. g3 {[%emt 0:05:17]} h6 {[%emt 0:17:31]} 18. Rc2 {[%emt 0:01:59]} Rfc8 {[%emt 0:08:35]} 19. Rdc1 {[%emt 0:02:01]} Rc7 {[%emt 0:01:42]} 20. Nh4 {[%emt 0:01:58]} g6 {[%emt 0:13:37]} 21. Qd3 {[%emt 0:12:55]} Kg7 {[%emt 0:01:53]} 22. Qxf5 {[%emt 0:05:32]} Rf8 {[%emt 0:10:03]} 23. Qg4 {[%emt 0:01:31]} a5 {[%emt 0:00:45]} 24. Re1 {[%emt 0:04:34]} c5 {[%emt 0:00:26]} 25. e4 {[%emt 0:01:00]} h5 {[%emt 0:00:33]} 26. Qg5 {[%emt 0:01:21]} dxe4 {[%emt 0:00:18]} 27. Rxe4 {[%emt 0:00:45]} Qf6 {[%emt 0:00:34]} 28. Qe3 {[%emt 0:06:21]} Rf7 {[%emt 0:00:42]} 29. Re6 {[%emt 0:01:00]} Qd8 {[%emt 0:00:30]} 30. Rxg6+ {[%emt 0:00:10]} Kh8 {[%emt 0:00:36]} 31. Rh6+ {[%emt 0:00:45]} Rh7 {[%emt 0:00:31]} 32. Rxh7+ {[%emt 0:00:57]} Kxh7 {[%emt 0:00:01]} 33. Qe4+ {[%emt 0:00:09]} Kg8 {[%emt 0:00:30]} 34. Qg6+ {[%emt 0:00:11]} Kf8 {[%emt 0:00:08]} 35. Qd6+ {[%emt 0:02:10]} Kf7 {[%emt 0:00:53]} 36. Nf5 {[%emt 0:01:44]} Rc8 {[%emt 0:00:37]} 37. Re2 {[%emt 0:00:26]} Nf6 {[%emt 0:00:33]} 38. Re7+ {[%emt 0:00:23]} 1-0

[Event "69th RUS-ch Women Higher League 2019"]
[Site "Yaroslavl"]
[Date "2019.06.28"]
[Round "2.1"]
[White "Galliamova, Alisa"]
[Black "Goltseva, Ekaterina"]
[Result "1/2-1/2"]
[ECO "A07"]
[WhiteElo "2444"]
[BlackElo "2304"]
[Annotator "NA"]
[PlyCount "67"]
[EventDate "2019.06.27"]
[EventType "swiss"]
[EventCountry "RUS"]
[SourceTitle "playchess.com"]
[Source "ChessBase"]
[SourceQuality "1"]
[TimeControl "40/5400+30:1800+30"]

1. Nf3 {[%emt 0:00:00]} d5 {[%emt 0:00:00]} 2. g3 {[%emt 0:00:00]} Nf6 {[%emt 0:00:39]} 3. Bg2 {[%emt 0:00:02]} c6 {[%emt 0:00:35]} 4. O-O {[%emt 0:00:29]} Bg4 {[%emt 0:00:27]} 5. d3 {[%emt 0:02:29]} Nbd7 {[%emt 0:00:57]} 6. c4 {[%emt 0:07:23]} e6 {[%emt 0:02:20]} 7. cxd5 {[%emt 0:02:56]} exd5 {[%emt 0:02:48]} 8. e4 {[%emt 0:03:05]} Be7 {[%emt 0:16:45]} 9. h3 {[%emt 0:05:51]} Bh5 {[%emt 0:09:45]} 10. Nc3 {[%emt 0:19:50]} dxe4 {[%emt 0:11:18]} 11. dxe4 {[%emt 0:00:41]} Nc5 {[%emt 0:00:41]} 12. Qxd8+ {[%emt 0:06:51]} Rxd8 {[%emt 0:00:53]} 13. Nh4 {[%emt 0:01:01]} Bg6 {[%emt 0:21:40]} 14. Nxg6 {[%emt 0:03:09]} hxg6 {[%emt 0:00:14]} 15. Be3 {[%emt 0:02:30]} Nfd7 {[%emt 0:05:50]} 16. Rad1 {[%emt 0:10:54]} O-O {[%emt 0:03:09]} 17. f4 {[%emt 0:05:36]} Nb6 {[%emt 0:01:26]} 18. b3 {[%emt 0:01:09]} Ne6 {[%emt 0:01:00]} 19. f5 {[%emt 0:04:19]} gxf5 {[%emt 0:02:34]} 20. exf5 {[%emt 0:00:29]} Bc5 {[%emt 0:00:59]} 21. Kf2 {[%emt 0:00:52]} Bxe3+ {[%emt 0:02:20]} 22. Kxe3 {[%emt 0:00:04]} Nc5 {[%emt 0:00:46]} 23. Rxd8 {[%emt 0:00:39]} Rxd8 {[%emt 0:00:04]} 24. Rd1 {[%emt 0:00:11]} Re8+ {[%emt 0:02:12]} 25. Kd4 {[%emt 0:09:24]} Na6 {[%emt 0:02:44]} 26. a3 {[%emt 0:02:38]} c5+ {[%emt 0:03:36]} 27. Kd3 {[%emt 0:00:07]} c4+ {[%emt 0:00:27]} 28. Kc2 {[%emt 0:04:09]} cxb3+ {[%emt 0:02:05]} 29. Kxb3 {[%emt 0:00:20]} Nc5+ {[%emt 0:01:45]} 30. Kb4 {[%emt 0:00:38]} Na6+ {[%emt 0:02:10]} 31. Kb3 {[%emt 0:00:20]} Nc5+ {[%emt 0:01:34]} 32. Kb4 {[%emt 0:00:40]} Na6+ {[%emt 0:00:23]} 33. Kb3 {[%emt 0:00:07]} Nc5+ {[%emt 0:01:39]} 34. Kb4 {[%emt 0:01:24]} 1/2-1/2

[Event "69th RUS-ch Women Higher League 2019"]
[Site "Yaroslavl"]
[Date "2019.06.28"]
[Round "2.2"]
[White "Dordzhieva, Dinara"]
[Black "Bodnaruk, Anastasia"]
[Result "1/2-1/2"]
[ECO "E63"]
[WhiteElo "2306"]
[BlackElo "2440"]
[Annotator "NA"]
[PlyCount "78"]
[EventDate "2019.06.27"]
[EventType "swiss"]
[EventCountry "RUS"]
[SourceTitle "playchess.com"]
[Source "ChessBase"]
[SourceQuality "1"]
[TimeControl "40/5400+30:1800+30"]

1. d4 {[%emt 0:00:34]} Nf6 {[%emt 0:00:00]} 2. c4 {[%emt 0:00:03]} g6 {[%emt 0:00:00]} 3. g3 {[%emt 0:00:03]} Bg7 {[%emt 0:00:11]} 4. Bg2 {[%emt 0:00:45]} O-O {[%emt 0:00:17]} 5. Nf3 {[%emt 0:00:12]} d6 {[%emt 0:00:16]} 6. Nc3 {[%emt 0:00:05]} Nc6 {[%emt 0:00:13]} 7. O-O {[%emt 0:00:06]} a6 {[%emt 0:00:03]} 8. d5 {[%emt 0:00:09]} Na5 {[%emt 0:00:27]} 9. Nd2 {[%emt 0:00:14]} c5 {[%emt 0:00:07]} 10. Qc2 {[%emt 0:00:07]} Rb8 {[%emt 0:00:53]} 11. a4 {[%emt 0:00:25]} e6 {[%emt 0:03:44]} 12. b3 {[%emt 0:02:27]} exd5 {[%emt 0:00:57]} 13. cxd5 {[%emt 0:00:02]} b5 {[%emt 0:00:56]} 14. axb5 {[%emt 0:00:07]} axb5 {[%emt 0:00:03]} 15. Bb2 {[%emt 0:00:30]} Re8 {[%emt 0:01:06]} 16. Rfe1 {[%emt 0:00:09]} Bf5 {[%emt 0:13:56]} 17. e4 {[%emt 0:00:59]} Bd7 {[%emt 0:00:04]} 18. h3 {[%emt 0:06:38]} Qb6 {[%emt 0:12:52]} 19. Ne2 {[%emt 0:11:06]} b4 {[%emt 0:17:25]} 20. Nf4 {[%emt 0:07:03]} Bb5 {[%emt 0:07:26]} 21. Nd3 {[%emt 0:12:21]} Bxd3 {[%emt 0:16:28]} 22. Qxd3 {[%emt 0:00:14]} c4 {[%emt 0:02:25]} 23. Nxc4 {[%emt 0:34:07]} Nxc4 {[%emt 0:00:06]} 24. Qxc4 {[%emt 0:00:21]} Nxe4 {[%emt 0:03:25]} 25. Rxe4 {[%emt 0:00:04]} Rxe4 {[%emt 0:02:29]} 26. Bxe4 {[%emt 0:00:19]} Bxb2 {[%emt 0:00:03]} 27. Ra6 {[%emt 0:00:45]} Qd8 {[%emt 0:02:17]} 28. Kg2 {[%emt 0:00:45]} Qe7 {[%emt 0:01:55]} 29. Bf3 {[%emt 0:01:03]} Bc3 {[%emt 0:01:34]} 30. Qc6 {[%emt 0:03:48]} Rd8 {[%emt 0:00:50]} 31. Ra8 {[%emt 0:00:12]} Rxa8 {[%emt 0:00:17]} 32. Qxa8+ {[%emt 0:00:04]} Kg7 {[%emt 0:00:03]} 33. Qa6 {[%emt 0:01:23]} Qe1 {[%emt 0:01:34]} 34. Qd3 {[%emt 0:01:19]} Qc1 {[%emt 0:01:37]} 35. Be2 {[%emt 0:02:59]} Qb2 {[%emt 0:00:26]} 36. Qc4 {[%emt 0:00:03]} Qd2 {[%emt 0:01:13]} 37. Qd3 {[%emt 0:00:26]} Qb2 {[%emt 0:00:13]} 38. Qc4 {[%emt 0:00:03]} Qd2 {[%emt 0:00:15]} 39. Qd3 {[%emt 0:00:04]} Qb2 {[%emt 0:00:09]} 1/2-1/2

[Event "69th RUS-ch Women Higher League 2019"]
[Site "Yaroslavl"]
[Date "2019.06.28"]
[Round "2.3"]
[White "Shuvalova, Polina"]
[Black "Protopopova, Anastasiya"]
[Result "1-0"]
[ECO "C72"]
[WhiteElo "2418"]
[BlackElo "2272"]
[Annotator "NA"]
[PlyCount "87"]
[EventDate "2019.06.27"]
[EventType "swiss"]
[EventCountry "RUS"]
[SourceTitle "playchess.com"]
[Source "ChessBase"]
[SourceQuality "1"]
[TimeControl "40/5400+30:1800+30"]

1. e4 {[%emt 0:00:00]} e5 {[%emt 0:00:18]} 2. Nf3 {[%emt 0:00:00]} Nc6 {[%emt 0:00:05]} 3. Bb5 {[%emt 0:00:00]} a6 {[%emt 0:00:05]} 4. Ba4 {[%emt 0:00:00]} d6 {[%emt 0:00:10]} 5. O-O {[%emt 0:01:50]} Bd7 {[%emt 0:02:52]} 6. c4 {[%emt 0:00:40]} g6 {[%emt 0:17:14]} 7. d4 {[%emt 0:00:42]} exd4 {[%emt 0:01:56]} 8. Bxc6 {[%emt 0:06:49]} Bxc6 {[%emt 0:07:30]} 9. Qxd4 {[%emt 0:01:06]} Qf6 {[%emt 0:03:34]} 10. Qd3 {[%emt 0:05:37]} Bg7 {[%emt 0:05:51]} 11. Nc3 {[%emt 0:00:07]} h6 {[%emt 0:08:57]} 12. Be3 {[%emt 0:01:48]} Qd8 {[%emt 0:08:03]} 13. Rad1 {[%emt 0:12:02]} Nf6 {[%emt 0:03:53]} 14. c5 {[%emt 0:02:12]} O-O {[%emt 0:02:17]} 15. cxd6 {[%emt 0:03:28]} cxd6 {[%emt 0:02:25]} 16. Nd4 {[%emt 0:10:29]} Bd7 {[%emt 0:04:09]} 17. f3 {[%emt 0:07:03]} b5 {[%emt 0:03:05]} 18. Nc2 {[%emt 0:05:02]} Be6 {[%emt 0:12:39]} 19. Qxd6 {[%emt 0:01:41]} Qxd6 {[%emt 0:01:53]} 20. Rxd6 {[%emt 0:00:05]} Rfc8 {[%emt 0:00:07]} 21. Rd2 {[%emt 0:03:37]} Bf8 {[%emt 0:07:28]} 22. Bd4 {[%emt 0:05:44]} Nd7 {[%emt 0:00:57]} 23. Ne3 {[%emt 0:00:30]} b4 {[%emt 0:01:32]} 24. Ncd5 {[%emt 0:00:14]} Rab8 {[%emt 0:01:57]} 25. b3 {[%emt 0:02:50]} Rb5 {[%emt 0:00:46]} 26. Nf4 {[%emt 0:01:36]} a5 {[%emt 0:02:30]} 27. Nxe6 {[%emt 0:11:19]} fxe6 {[%emt 0:00:02]} 28. Nc4 {[%emt 0:00:33]} a4 {[%emt 0:01:07]} 29. Rfd1 {[%emt 0:05:36]} axb3 {[%emt 0:00:14]} 30. axb3 {[%emt 0:00:01]} Ra8 {[%emt 0:00:30]} 31. Be3 {[%emt 0:01:39]} Nc5 {[%emt 0:00:06]} 32. Rd8 {[%emt 0:01:41]} Rxd8 {[%emt 0:00:56]} 33. Rxd8 {[%emt 0:00:02]} Nb7 {[%emt 0:00:48]} 34. Rb8 {[%emt 0:03:12]} Kf7 {[%emt 0:00:12]} 35. Bd4 {[%emt 0:00:08]} Be7 {[%emt 0:00:42]} 36. Ne5+ {[%emt 0:02:40]} Rxe5 {[%emt 0:00:07]} 37. Bxe5 {[%emt 0:00:48]} Na5 {[%emt 0:00:02]} 38. Kf1 {[%emt 0:01:54]} Nxb3 {[%emt 0:00:17]} 39. Rb5 {[%emt 0:00:43]} Nc1 {[%emt 0:00:28]} 40. Bf4 {[%emt 0:00:00]} Nd3 {[%emt 0:00:00]} 41. Bxh6 {[%emt 0:04:33]} Ke8 {[%emt 0:05:21]} 42. Ke2 {[%emt 0:00:59]} Nb2 {[%emt 0:01:10]} 43. Bd2 {[%emt 0:00:54]} Kd7 {[%emt 0:00:37]} 44. Rb7+ {[%emt 0:00:04]} 1-0

[Event "69th RUS-ch Women Higher League 2019"]
[Site "Yaroslavl"]
[Date "2019.06.28"]
[Round "2.4"]
[White "Afonasieva, Anna"]
[Black "Ovod, Evgenija"]
[Result "1/2-1/2"]
[ECO "A43"]
[WhiteElo "2303"]
[BlackElo "2361"]
[Annotator "NA"]
[PlyCount "83"]
[EventDate "2019.06.27"]
[EventType "swiss"]
[EventCountry "RUS"]
[SourceTitle "playchess.com"]
[Source "ChessBase"]
[SourceQuality "1"]
[TimeControl "40/5400+30:1800+30"]

1. d4 {[%emt 0:00:00]} Nf6 {[%emt 0:00:00]} 2. Nf3 {[%emt 0:00:00]} c5 {[%emt 0:00:00]} 3. d5 {[%emt 0:00:14]} b5 {[%emt 0:00:00]} 4. Bg5 {[%emt 0:00:27]} Qb6 {[%emt 0:00:00]} 5. Bxf6 {[%emt 0:00:33]} Qxf6 {[%emt 0:00:04]} 6. c3 {[%emt 0:00:12]} d6 {[%emt 0:00:19]} 7. e3 {[%emt 0:01:50]} a6 {[%emt 0:08:55]} 8. Nbd2 {[%emt 0:04:45]} Nd7 {[%emt 0:05:37]} 9. a4 {[%emt 0:02:44]} b4 {[%emt 0:01:45]} 10. cxb4 {[%emt 0:01:37]} cxb4 {[%emt 0:04:20]} 11. Qb3 {[%emt 0:02:09]} Bb7 {[%emt 0:10:14]} 12. a5 {[%emt 0:06:19]} Nc5 {[%emt 0:07:29]} 13. Qxb4 {[%emt 0:04:13]} Bxd5 {[%emt 0:00:36]} 14. e4 {[%emt 0:20:36]} Bc6 {[%emt 0:01:34]} 15. Qb6 {[%emt 0:01:07]} Bd7 {[%emt 0:04:31]} 16. Rc1 {[%emt 0:02:08]} Rc8 {[%emt 0:11:16]} 17. Bxa6 {[%emt 0:15:51]} Nxa6 {[%emt 0:00:18]} 18. Rxc8+ {[%emt 0:00:18]} Bxc8 {[%emt 0:00:05]} 19. Qc6+ {[%emt 0:04:02]} Kd8 {[%emt 0:00:07]} 20. Qb6+ {[%emt 0:00:15]} Nc7 {[%emt 0:00:58]} 21. Nd4 {[%emt 0:06:33]} Ba6 {[%emt 0:00:41]} 22. Nc6+ {[%emt 0:05:37]} Kc8 {[%emt 0:00:14]} 23. Nf3 {[%emt 0:11:18]} Qf4 {[%emt 0:22:57]} 24. Kd1 {[%emt 0:02:25]} Qxe4 {[%emt 0:03:41]} 25. Nfd4 {[%emt 0:01:17]} Bb7 {[%emt 0:02:36]} 26. Nb5 {[%emt 0:03:40]} Qb1+ {[%emt 0:00:19]} 27. Kd2 {[%emt 0:00:24]} Qxb2+ {[%emt 0:00:13]} 28. Kd1 {[%emt 0:00:24]} Qb3+ {[%emt 0:07:37]} 29. Kd2 {[%emt 0:00:19]} Qd5+ {[%emt 0:00:34]} 30. Ke1 {[%emt 0:00:10]} Qe4+ {[%emt 0:05:42]} 31. Kd2 {[%emt 0:00:19]} Qd5+ {[%emt 0:00:12]} 32. Ke1 {[%emt 0:00:05]} Qe6+ {[%emt 0:01:07]} 33. Kd2 {[%emt 0:00:21]} Qa2+ {[%emt 0:00:58]} 34. Ke1 {[%emt 0:00:33]} Qa1+ {[%emt 0:00:27]} 35. Kd2 {[%emt 0:00:07]} Qb2+ {[%emt 0:00:15]} 36. Kd1 {[%emt 0:00:07]} Qb1+ {[%emt 0:00:16]} 37. Kd2 {[%emt 0:00:05]} Qb2+ {[%emt 0:00:11]} 38. Kd1 {[%emt 0:00:04]} Qb3+ {[%emt 0:00:17]} 39. Kd2 {[%emt 0:00:07]} Qa2+ {[%emt 0:00:25]} 40. Ke1 {[%emt 0:00:00]} Qe6+ {[%emt 0:00:00]} 41. Kd2 {[%emt 0:00:16]} Qd5+ {[%emt 0:00:27]} 42. Ke1 {[%emt 0:00:06]} 1/2-1/2